fUST/lending_fUST_20260516
["ID","MTS","AMOUNT","RATE_DAILY","PERIOD"]
[422397720,1778935840000,-500.0,6.833e-05,2]
[422397734,1778935840000,-500.0,6.833e-05,2]
[422397758,1778935840000,-31321.13518082,6.834e-05,2]
[422397771,1778935841000,-1604.14,6.834e-05,2]
[422397769,1778935841000,-5339.53196822,6.834e-05,2]
[422397767,1778935841000,-2936.42643806,6.834e-05,2]
[422397765,1778935841000,-1689.72065281,6.834e-05,2]
[422397763,1778935841000,-26477.74633875,6.834e-05,2]
[422397760,1778935841000,-33362.5839164,6.834e-05,2]
[422398009,1778935843000,-1999.3,6.242e-05,2]
[422398016,1778935850000,-0.0288,6.242e-05,2]
[422398017,1778935850000,-27314.66184759,6.834e-05,2]
[422398018,1778935850000,-1457.10102313,6.834e-05,2]
[422398015,1778935850000,-2466.08903906,6.242e-05,2]
[422427400,1778936454000,-5000.0,6.498e-05,2]
[422427401,1778936471000,-314.58843808,6.614e-05,2]
[422427402,1778936488000,-180.918,6.697e-05,2]
[422427403,1778936505000,-1200.0,6.698e-05,2]
[422427405,1778936522000,-17557.54970785,6e-05,2]
[422427407,1778936539000,-300.0,5.999e-05,2]
[422427408,1778936556000,-5000.0,5.939e-05,2]
[422427412,1778936572000,-13757.54970785,6e-05,2]
[422427509,1778937038000,-500.0,5.999e-05,2]
[422427508,1778937038000,-500.0,5.999e-05,2]
[422427504,1778937038000,-500.0,5.999e-05,2]
[422427525,1778937038000,-500.0,5.999e-05,2]
[422427523,1778937038000,-500.0,5.999e-05,2]
[422427524,1778937038000,-500.0,5.999e-05,2]
[422427513,1778937038000,-500.0,5.999e-05,2]
[422427507,1778937038000,-500.0,5.999e-05,2]
[422427514,1778937038000,-526.39908656,5.999e-05,2]
[422427506,1778937038000,-500.0,5.999e-05,2]
[422427500,1778937038000,-500.0,5.999e-05,2]
[422427510,1778937038000,-500.0,5.999e-05,2]
[422427503,1778937038000,-500.0,5.999e-05,2]
[422427502,1778937038000,-500.0,5.999e-05,2]
[422427512,1778937038000,-500.0,5.999e-05,2]
[422427511,1778937038000,-500.0,5.999e-05,2]
[422427515,1778937038000,-500.0,5.999e-05,2]
[422427501,1778937038000,-500.0,5.999e-05,2]
[422427499,1778937038000,-314.71684152,5.925e-05,2]
[422427498,1778937038000,-13747.41,5.9e-05,2]
[422427505,1778937038000,-500.0,5.999e-05,2]
[422427521,1778937038000,-500.0,5.999e-05,2]
[422427540,1778937038000,-500.0,5.999e-05,2]
[422427522,1778937038000,-500.0,5.999e-05,2]
[422427520,1778937038000,-500.0,5.999e-05,2]
[422427542,1778937038000,-500.0,5.999e-05,2]
[422427541,1778937038000,-170.30313056,5.999e-05,2]
[422427539,1778937038000,-500.0,5.999e-05,2]
[422427534,1778937038000,-500.0,5.999e-05,2]
[422427533,1778937038000,-500.0,5.999e-05,2]
[422427531,1778937038000,-500.0,5.999e-05,2]
[422427529,1778937038000,-500.0,5.999e-05,2]
[422427530,1778937038000,-250.0,5.999e-05,2]
[422427528,1778937038000,-500.0,5.999e-05,2]
[422427532,1778937038000,-500.0,5.999e-05,2]
[422427527,1778937038000,-500.0,5.999e-05,2]
[422427537,1778937038000,-500.0,5.999e-05,2]
[422427536,1778937038000,-500.0,5.999e-05,2]
[422427535,1778937038000,-533.69808843,5.999e-05,2]
[422427526,1778937038000,-500.0,5.999e-05,2]
[422427517,1778937038000,-500.0,5.999e-05,2]
[422427519,1778937038000,-500.0,5.999e-05,2]
[422427518,1778937038000,-500.0,5.999e-05,2]
[422427538,1778937038000,-500.0,5.999e-05,2]
[422427516,1778937038000,-500.0,5.999e-05,2]
[422427559,1778937039000,-300.0,6.119e-05,2]
[422427558,1778937039000,-300.0,6.119e-05,2]
[422427560,1778937039000,-300.0,6.119e-05,2]
[422427554,1778937039000,-300.0,6.119e-05,2]
[422427566,1778937039000,-500.0,6.149e-05,2]
[422427562,1778937039000,-300.0,6.119e-05,2]
[422427564,1778937039000,-300.0,6.119e-05,2]
[422427565,1778937039000,-500.0,6.149e-05,2]
[422427555,1778937039000,-300.0,6.119e-05,2]
[422427563,1778937039000,-300.0,6.119e-05,2]
[422427561,1778937039000,-300.0,6.119e-05,2]
[422427544,1778937039000,-6895.17028341,6e-05,2]
[422427557,1778937039000,-300.0,6.119e-05,2]
[422427556,1778937039000,-300.0,6.119e-05,2]
[422427552,1778937039000,-300.0,6.119e-05,2]
[422427550,1778937039000,-300.0,6.119e-05,2]
[422427551,1778937039000,-300.0,6.119e-05,2]
[422427548,1778937039000,-3004.23232084,6e-05,2]
[422427546,1778937039000,-31019.13530686,6e-05,2]
[422427547,1778937039000,-3238.28883582,6e-05,2]
[422427545,1778937039000,-17226.94880536,6e-05,2]
[422427567,1778937039000,-500.0,6.149e-05,2]
[422427543,1778937039000,-43659.02503201,6e-05,2]
[422427549,1778937039000,-161.66594191,6.077e-05,2]
[422427553,1778937039000,-300.0,6.119e-05,2]
[422427570,1778937039000,-500.0,6.149e-05,2]
[422427576,1778937039000,-500.0,6.149e-05,2]
[422427572,1778937039000,-500.0,6.149e-05,2]
[422427593,1778937039000,-1818.08259693,6.7e-05,2]
[422427594,1778937039000,-823.88321285,6.7e-05,2]
[422427595,1778937039000,-2189.98205954,6.7e-05,2]
[422427591,1778937039000,-1990.06388003,6.7e-05,2]
[422427590,1778937039000,-180.918,6.697e-05,2]
[422427589,1778937039000,-2856.9346892,6.604e-05,2]
[422427588,1778937039000,-151.0,6.15e-05,2]
[422427596,1778937039000,-31616.12545529,6.834e-05,2]
[422427568,1778937039000,-500.0,6.149e-05,2]
[422427586,1778937039000,-500.0,6.149e-05,2]
[422427587,1778937039000,-500.0,6.149e-05,2]
[422427582,1778937039000,-500.0,6.149e-05,2]
[422427592,1778937039000,-2004.03232819,6.7e-05,2]
[422427585,1778937039000,-500.0,6.149e-05,2]
[422427569,1778937039000,-500.0,6.149e-05,2]
[422427583,1778937039000,-162.90310413,6.149e-05,2]
[422427573,1778937039000,-500.0,6.149e-05,2]
[422427574,1778937039000,-500.0,6.149e-05,2]
[422427575,1778937039000,-500.0,6.149e-05,2]
[422427571,1778937039000,-500.0,6.149e-05,2]
[422427578,1778937039000,-500.0,6.149e-05,2]
[422427579,1778937039000,-500.0,6.149e-05,2]
[422427580,1778937039000,-500.0,6.149e-05,2]
[422427581,1778937039000,-500.0,6.149e-05,2]
[422427584,1778937039000,-500.0,6.149e-05,2]
[422427577,1778937039000,-500.0,6.149e-05,2]
[422427619,1778937041000,-544.22752634,6.834e-05,2]
[422427624,1778937043000,-2734.30346923,6.834e-05,2]
[422427625,1778937044000,-2287.82511158,6.834e-05,2]
[422427651,1778937046000,-475.65687407,6.7e-05,2]
[422427649,1778937046000,-1351.5914287,6.7e-05,2]
[422427647,1778937046000,-625.68858185,6.7e-05,2]
[422427688,1778937047000,-53171.21100169,6.834e-05,2]
[422427691,1778937047000,-7808.74716448,6.834e-05,2]
[422427684,1778937047000,-1106.58528149,6.7e-05,2]
[422427695,1778937047000,-14358.69197532,6.834e-05,2]
[422427697,1778937047000,-785.90876817,6.834e-05,2]
[422427699,1778937047000,-896.75205161,6.834e-05,2]
[422427686,1778937047000,-1503.97285231,6.7e-05,2]
[422427717,1778937469000,172.74798,2.836e-05,2]
[422427741,1778937930000,25993.00944577,0.00018493,120]
[422427744,1778937967000,2644724.2731714,0.00018493,120]
[422427786,1778938081000,256.35143019,5e-05,2]
[422427787,1778938200000,4776.99460718,5e-05,2]
[422427788,1778938216000,5000.0,5e-05,2]
[422427823,1778938232000,-172.74798,5.56e-05,2]
[422427821,1778938232000,-150.60326149,5.479e-05,7]
[422427825,1778938232000,-110.02726208,6e-05,2]
[422427819,1778938232000,-329.75729643,5.21e-05,2]
[422428011,1778938238000,-153.61765848,6.7e-05,2]
[422428018,1778938238000,-500.0,6.832e-05,2]
[422428020,1778938238000,-176.066,6.833e-05,2]
[422428017,1778938238000,-500.0,6.832e-05,2]
[422428016,1778938238000,-500.0,6.832e-05,2]
[422428015,1778938238000,-500.0,6.832e-05,2]
[422428014,1778938238000,-559.2997876,6.832e-05,2]
[422428006,1778938238000,-875.0219603,6.362e-05,2]
[422428013,1778938238000,-500.0,6.832e-05,2]
[422428012,1778938238000,-159.45389794,6.7e-05,2]
[422428009,1778938238000,-377.08664047,6.7e-05,2]
[422428008,1778938238000,-350.12408234,6.7e-05,2]
[422428007,1778938238000,-227.02787155,6.7e-05,2]
[422428027,1778938238000,-500.0,6.833e-05,2]
[422428002,1778938238000,-35682.21843792,6e-05,2]
[422428010,1778938238000,-396.50382233,6.7e-05,2]
[422428019,1778938238000,-562.06135906,6.832e-05,2]
[422428004,1778938238000,-3035.1991359,6.362e-05,2]
[422428023,1778938238000,-500.0,6.833e-05,2]
[422428021,1778938238000,-500.0,6.833e-05,2]
[422428040,1778938238000,-5639.00751005,6.834e-05,2]
[422428039,1778938238000,-262.90310413,6.833e-05,2]
[422428038,1778938238000,-500.0,6.833e-05,2]
[422428033,1778938238000,-500.0,6.833e-05,2]
[422428034,1778938238000,-500.0,6.833e-05,2]
[422428037,1778938238000,-500.0,6.833e-05,2]
[422428032,1778938238000,-500.0,6.833e-05,2]
[422428036,1778938238000,-500.0,6.833e-05,2]
[422428031,1778938238000,-500.0,6.833e-05,2]
[422428025,1778938238000,-500.0,6.833e-05,2]
[422428035,1778938238000,-500.0,6.833e-05,2]
[422428022,1778938238000,-500.0,6.833e-05,2]
[422428026,1778938238000,-500.0,6.833e-05,2]
[422428028,1778938238000,-500.0,6.833e-05,2]
[422428030,1778938238000,-500.0,6.833e-05,2]
[422428029,1778938238000,-500.0,6.833e-05,2]
[422428041,1778938239000,-4272.03590178,6.834e-05,2]
[422428122,1778938242000,-2406.96,5.94e-05,2]
[422428120,1778938242000,-1010.18875396,5.94e-05,2]
[422428129,1778938242000,-1288.72719031,5.94e-05,2]
[422428226,1778938244000,-1654.97550427,6.834e-05,2]
[422428227,1778938244000,-6770.58491379,6.834e-05,2]
[422428225,1778938244000,-294.12405573,5.94e-05,2]
[422428236,1778938247000,-48476.2619609,6.834e-05,2]
[422428237,1778938247000,-4602.33260778,6.834e-05,2]
[422428240,1778938319000,179.647246,3.106e-05,2]
[422429307,1778939414000,5000.0,5e-05,2]
[422429358,1778939432000,-1296.50530536,5.069e-05,2]
[422429365,1778939436000,5000.0,5e-05,2]
[422429399,1778939441000,-186.74808573,5.479e-05,7]
[422429409,1778939441000,-4688.40008119,5.682e-05,2]
[422429406,1778939441000,-627.38902037,5.507e-05,7]
[422429403,1778939441000,-1953.20082593,5.5e-05,2]
[422429400,1778939441000,-326.00565075,5.479e-05,7]
[422429412,1778939441000,-281.94369936,5.727e-05,7]
[422429405,1778939441000,-548.40960458,5.507e-05,7]
[422429402,1778939441000,-163.00282537,5.479e-05,7]
[422429404,1778939441000,-491.5912528,5.507e-05,7]
[422429407,1778939441000,-524.30493052,5.507e-05,7]
[422429408,1778939441000,-4233.79361477,5.582e-05,2]
[422429401,1778939441000,-489.00847612,5.479e-05,7]
[422429398,1778939441000,-301.20652299,5.479e-05,7]
[422429397,1778939441000,-192.1505985,5.479e-05,7]
[422429395,1778939441000,-181.88943465,5.479e-05,7]
[422429394,1778939441000,-36.84111826,5.479e-05,7]
[422429393,1778939441000,-148.67108812,5.479e-05,7]
[422429390,1778939441000,-274.20480229,5.479e-05,7]
[422429391,1778939441000,-262.15246526,5.479e-05,7]
[422429392,1778939441000,-178.1285288,5.479e-05,7]
[422429388,1778939441000,-222.80498944,5.479e-05,7]
[422429386,1778939441000,-1200.0,5.475e-05,2]
[422429387,1778939441000,-300.0,5.476e-05,2]
[422429384,1778939441000,-300.0,5.475e-05,2]
[422429385,1778939441000,-300.0,5.475e-05,2]
[422429381,1778939441000,-457.17773784,5.069e-05,2]
[422429383,1778939441000,-300.0,5.475e-05,2]
[422429382,1778939441000,-340.33476185,5.146e-05,2]
[422429410,1778939441000,-293.77160896,5.727e-05,7]
[422429389,1778939441000,-245.7956264,5.479e-05,7]
[422429421,1778939441000,-563.88739872,6.027e-05,7]
[422429396,1778939441000,-384.301197,5.479e-05,7]
[422429422,1778939441000,-668.41496832,6.027e-05,7]
[422429445,1778939441000,-2666.57976857,6.7e-05,2]
[422429447,1778939441000,-165.80397909,6.7e-05,2]
[422429446,1778939441000,-2686.72171192,6.7e-05,2]
[422429449,1778939441000,-191.22273375,6.7e-05,2]
[422429444,1778939441000,-2410.67482585,6.7e-05,2]
[422429443,1778939441000,-2922.48471135,6.7e-05,2]
[422429441,1778939441000,-559.2997876,6.699e-05,2]
[422429442,1778939441000,-1083.42415469,6.7e-05,2]
[422429440,1778939441000,-562.06135906,6.699e-05,2]
[422429431,1778939441000,-3071.8580977,6.631e-05,2]
[422429434,1778939441000,-500.0,6.699e-05,2]
[422429433,1778939441000,-500.0,6.699e-05,2]
[422429426,1778939441000,-325.6741584,6.127e-05,2]
[422429425,1778939441000,-457.046318,6.127e-05,2]
[422429436,1778939441000,-500.0,6.699e-05,2]
[422429448,1778939441000,-196.76148615,6.7e-05,2]
[422429429,1778939441000,-455.7687067,6.129e-05,2]
[422429450,1778939441000,-200.62484217,6.7e-05,2]
[422429414,1778939441000,-240.17764302,5.727e-05,7]
[422429417,1778939441000,-1775.10177742,6e-05,5]
[422429415,1778939441000,-4792.79015461,5.782e-05,2]
[422429418,1778939441000,-3095.96451851,6e-05,5]
[422429420,1778939441000,-461.28708939,6.027e-05,7]
[422429413,1778939441000,-445.60997888,5.727e-05,7]
[422429411,1778939441000,-230.6435447,5.727e-05,7]
[422429419,1778939441000,-587.54321792,6.027e-05,7]
[422429424,1778939441000,-179.647246,6.091e-05,2]
[422429439,1778939441000,-500.0,6.699e-05,2]
[422429423,1778939441000,-480.35528605,6.027e-05,7]
[422429438,1778939441000,-500.0,6.699e-05,2]
[422429416,1778939441000,-5143.00654771,5.882e-05,2]
[422429428,1778939441000,-456.513297,6.127e-05,2]
[422429461,1778939442000,-500.0,6.833e-05,2]
[422429459,1778939442000,-500.0,6.833e-05,2]
[422429457,1778939442000,-500.0,6.833e-05,2]
[422429458,1778939442000,-500.0,6.833e-05,2]
[422429456,1778939442000,-500.0,6.833e-05,2]
[422429455,1778939442000,-500.0,6.833e-05,2]
[422429454,1778939442000,-500.0,6.833e-05,2]
[422429466,1778939442000,-500.0,6.833e-05,2]
[422429451,1778939442000,-685.4241893,6.785e-05,2]
[422429453,1778939442000,-500.0,6.833e-05,2]
[422429452,1778939442000,-152.9388091,6.819e-05,2]
[422429465,1778939442000,-376.34368044,6.833e-05,2]
[422429462,1778939442000,-500.0,6.833e-05,2]
[422429464,1778939442000,-500.0,6.833e-05,2]
[422429463,1778939442000,-500.0,6.833e-05,2]
[422429468,1778939442000,-500.0,6.833e-05,2]
[422429467,1778939442000,-500.0,6.833e-05,2]
[422429472,1778939442000,-500.0,6.833e-05,2]
[422429470,1778939442000,-500.0,6.833e-05,2]
[422429471,1778939442000,-500.0,6.833e-05,2]
[422429476,1778939442000,-500.0,6.833e-05,2]
[422429477,1778939442000,-28388.1999842,6.834e-05,2]
[422429473,1778939442000,-500.0,6.833e-05,2]
[422429474,1778939442000,-500.0,6.833e-05,2]
[422429475,1778939442000,-500.0,6.833e-05,2]
[422429460,1778939442000,-500.0,6.833e-05,2]
[422429469,1778939442000,-200.0,6.833e-05,2]
[422429486,1778939447000,-5000.0,6.834e-05,2]
[422429487,1778939447000,-4317.21162246,6.834e-05,2]
[422429485,1778939447000,-5476.57233196,6.834e-05,2]
[422429488,1778939469000,-152.0,8.002e-05,30]
[422429491,1778939838000,48487.3081924,4.976e-05,2]
[422429495,1778940034000,-5000.0,5.396e-05,2]
[422429496,1778940051000,-341.1794751,5.424e-05,2]
[422429498,1778940068000,-1200.0,5.45e-05,2]
[422429500,1778940085000,-300.0,5.478e-05,2]
[422429502,1778940102000,-300.0,5.478e-05,2]
[422429504,1778940118000,-300.0,5.478e-05,2]
[422429506,1778940135000,-167.66948389,5.479e-05,7]
[422429507,1778940152000,-234.21618467,5.479e-05,7]
[422429510,1778940169000,-300.0,5.506e-05,2]
[422429561,1778940631000,-5000.0,5.236e-05,2]
[422429559,1778940631000,-4084.03722137,5.184e-05,2]
[422429562,1778940631000,-341.85426592,5.298e-05,2]
[422429564,1778940631000,-151.0000001,5.307e-05,2]
[422429568,1778940631000,-458.5743164,5.319e-05,2]
[422429569,1778940631000,-300.0,5.341e-05,2]
[422429576,1778940631000,-480.61285298,5.479e-05,7]
[422429566,1778940631000,-456.5367176,5.319e-05,2]
[422429575,1778940631000,-523.16231094,5.479e-05,7]
[422429570,1778940631000,-300.0,5.341e-05,2]
[422429574,1778940631000,-301.20652299,5.479e-05,7]
[422429572,1778940631000,-1200.0,5.341e-05,2]
[422429573,1778940631000,-402.16704336,5.479e-05,7]
[422429577,1778940631000,-1517.08627191,5.479e-05,2]
[422429580,1778940631000,-559.62709693,5.479e-05,2]
[422429578,1778940631000,-1331.37290307,5.479e-05,2]
[422429579,1778940631000,-500.0,5.479e-05,2]
[422429581,1778940631000,-2751.07633631,5.479e-05,2]
[422429571,1778940631000,-300.0,5.341e-05,2]
[422429818,1778940641000,-160.0,5.55e-05,2]
[422429824,1778940641000,-4806.34830653,5.722e-05,2]
[422429826,1778940641000,-205.65360172,5.777e-05,7]
[422429836,1778940641000,-1379.88617682,5.822e-05,2]
[422429830,1778940641000,-196.61434895,5.777e-05,7]
[422429828,1778940641000,-324.9885096,5.777e-05,7]
[422429839,1778940641000,-679.40931901,5.875e-05,2]
[422429832,1778940641000,-422.91554904,5.777e-05,7]
[422429834,1778940641000,-180.13323227,5.777e-05,7]
[422429838,1778940641000,-420.0,5.875e-05,2]
[422429840,1778940641000,-1000.59068099,5.875e-05,2]
[422429835,1778940641000,-368.69343961,5.777e-05,7]
[422429822,1778940641000,-4339.5376488,5.622e-05,2]
[422429837,1778940641000,-3564.17143032,5.822e-05,2]
[422429820,1778940641000,-161.66594191,5.598e-05,2]
[422429790,1778940641000,-192.1505985,5.479e-05,7]
[422429807,1778940641000,-335.33896778,5.507e-05,7]
[422429805,1778940641000,-373.49617147,5.507e-05,7]
[422429815,1778940641000,-416.50610489,5.537e-05,7]
[422429803,1778940641000,-150.60326149,5.507e-05,7]
[422429811,1778940641000,-2012.42863002,5.522e-05,2]
[422429813,1778940641000,-353.54031264,5.537e-05,7]
[422429801,1778940641000,-363.77886929,5.507e-05,7]
[422429799,1778940641000,-468.43236935,5.507e-05,7]
[422429797,1778940641000,-371.02441275,5.507e-05,7]
[422429795,1778940641000,-489.00847612,5.479e-05,7]
[422429793,1778940641000,-326.00565075,5.479e-05,7]
[422429791,1778940641000,-384.301197,5.479e-05,7]
[422429787,1778940641000,-458.81850262,5.479e-05,7]
[422429784,1778940641000,-900.02412088,5.479e-05,2]
[422429809,1778940641000,-244.50423806,5.507e-05,7]
[422429841,1778940641000,-5273.15896434,5.922e-05,2]
[422429853,1778940641000,-1972.39059146,6.7e-05,2]
[422429844,1778940641000,-21947.59720928,6e-05,2]
[422429866,1778940641000,-500.0,6.833e-05,2]
[422429875,1778940641000,-500.0,6.833e-05,2]
[422429876,1778940641000,-500.0,6.833e-05,2]
[422429870,1778940641000,-500.0,6.833e-05,2]
[422429872,1778940641000,-500.0,6.833e-05,2]
[422429868,1778940641000,-500.0,6.833e-05,2]
[422429878,1778940641000,-12307.8422749,6.834e-05,2]
[422429877,1778940641000,-600.0,6.833e-05,2]
[422429867,1778940641000,-500.0,6.833e-05,2]
[422429863,1778940641000,-403.44057631,6.833e-05,2]
[422429861,1778940641000,-500.0,6.833e-05,2]
[422429865,1778940641000,-500.0,6.833e-05,2]
[422429864,1778940641000,-500.0,6.833e-05,2]
[422429857,1778940641000,-2866.28836367,6.7e-05,2]
[422429862,1778940641000,-500.0,6.833e-05,2]
[422429856,1778940641000,-3116.95418462,6.7e-05,2]
[422429847,1778940641000,-152.0,6.021e-05,7]
[422429843,1778940641000,-13734.62122864,6e-05,2]
[422429850,1778940641000,-960.0,6.463e-05,2]
[422429851,1778940641000,-797.92351383,6.7e-05,2]
[422429860,1778940641000,-2428.41005007,6.7e-05,2]
[422429852,1778940641000,-1765.64388784,6.7e-05,2]
[422429846,1778940641000,-152.0,6.019e-05,7]
[422429849,1778940641000,-300.0,6.463e-05,2]
[422429848,1778940641000,-325.8907786,6.141e-05,2]
[422429854,1778940641000,-2094.97139378,6.7e-05,2]
[422429855,1778940641000,-729.78012561,6.7e-05,2]
[422429859,1778940641000,-1798.03424464,6.7e-05,2]
[422429858,1778940641000,-3805.49831924,6.7e-05,2]
[422429845,1778940641000,-152.0,6.019e-05,7]
[422429842,1778940641000,-340.2290399,5.999e-05,2]
[422429893,1778940643000,-2907.59361649,6.834e-05,2]
[422429899,1778940646000,-90565.41916446,6.834e-05,2]
[422429902,1778940646000,-3843.55619887,6.834e-05,2]
[422429901,1778940646000,-28598.65157734,6.834e-05,2]
[422429900,1778940646000,-15286.64332034,6.834e-05,2]
[422429910,1778940757000,-152.0,8.002e-05,30]
[422429915,1778941167000,10716.98819293,5e-05,2]
[422429924,1778941602000,10000.0,5e-05,2]
[422429925,1778941609000,10000.0,5e-05,2]
[422430003,1778941854000,-335.0171806,5.267e-05,2]
[422430005,1778941854000,-167.43664186,5.5e-05,2]
[422430004,1778941854000,-171.79111016,5.479e-05,7]
[422430002,1778941854000,-985.05361549,5.179e-05,2]
[422430000,1778941854000,-2274.99999997,5.179e-05,2]
[422430001,1778941854000,-616.94145189,5.179e-05,2]
[422429999,1778941854000,-1123.00493265,5.179e-05,2]
[422430022,1778942262000,3117.76203223,5e-05,2]
[422430050,1778942437000,1777.36723844,5e-05,2]
[422430061,1778942714000,4980.1,8e-05,30]
[422430108,1778943032000,-656.931,5.05e-05,2]
[422430209,1778943041000,-300.0,6.654e-05,2]
[422430207,1778943041000,-386.9548835,6.1e-05,2]
[422430205,1778943041000,-151.0,6.1e-05,2]
[422430203,1778943041000,-259.6310944,6.1e-05,2]
[422430189,1778943041000,-10536.19995541,5.5e-05,2]
[422430201,1778943041000,-151.0,6.1e-05,2]
[422430193,1778943041000,-152.0,5.99e-05,7]
[422430195,1778943041000,-152.0,6.009e-05,7]
[422430191,1778943041000,-152.0,5.988e-05,7]
[422430199,1778943041000,-420.0,6.049e-05,2]
[422430180,1778943041000,-2836.80335814,5.5e-05,2]
[422430187,1778943041000,-9510.3555938,5.5e-05,2]
[422430185,1778943041000,-8484.51123229,5.5e-05,2]
[422430183,1778943041000,-10798.58262868,5.5e-05,2]
[422430182,1778943041000,-4393.93717375,5.5e-05,2]
[422430178,1778943041000,-300.0,5.499e-05,2]
[422430174,1778943041000,-960.0,5.498e-05,2]
[422430176,1778943041000,-300.0,5.499e-05,2]
[422430170,1778943041000,-4343.069,5.05e-05,2]
[422430212,1778943041000,-636.44731816,6.696e-05,2]
[422430197,1778943041000,-152.0,6.009e-05,7]
[422430222,1778943041000,-500.0,6.699e-05,2]
[422430172,1778943041000,-335.63153129,5.153e-05,2]
[422430214,1778943041000,-500.0,6.699e-05,2]
[422430271,1778943041000,-64176.66551385,6.7e-05,2]
[422430259,1778943041000,-126511.64063773,6.7e-05,2]
[422430257,1778943041000,-500.0,6.699e-05,2]
[422430256,1778943041000,-500.0,6.699e-05,2]
[422430252,1778943041000,-500.0,6.699e-05,2]
[422430246,1778943041000,-500.0,6.699e-05,2]
[422430244,1778943041000,-200.0,6.699e-05,2]
[422430240,1778943041000,-500.0,6.699e-05,2]
[422430236,1778943041000,-500.0,6.699e-05,2]
[422430250,1778943041000,-500.0,6.699e-05,2]
[422430238,1778943041000,-500.0,6.699e-05,2]
[422430254,1778943041000,-500.0,6.699e-05,2]
[422430216,1778943041000,-634.71155464,6.699e-05,2]
[422430226,1778943041000,-500.0,6.699e-05,2]
[422430242,1778943041000,-500.0,6.699e-05,2]
[422430220,1778943041000,-500.0,6.699e-05,2]
[422430228,1778943041000,-500.0,6.699e-05,2]
[422430224,1778943041000,-467.03861142,6.699e-05,2]
[422430232,1778943041000,-500.0,6.699e-05,2]
[422430234,1778943041000,-500.0,6.699e-05,2]
[422430248,1778943041000,-500.0,6.699e-05,2]
[422430230,1778943041000,-500.0,6.699e-05,2]
[422430218,1778943041000,-500.0,6.699e-05,2]
[422431007,1778943047000,-1709.94574488,6.633e-05,2]
[422431011,1778943047000,-300.05425512,6.7e-05,2]
[422431013,1778943047000,-1801.77212347,6.7e-05,2]
[422431543,1778943635000,-152.0,5.988e-05,7]
[422431544,1778943652000,-152.0,6.011e-05,7]
[422431545,1778943669000,-152.0,6.011e-05,7]
[422431546,1778943685000,-336.33987351,6.184e-05,2]
[422431548,1778943703000,-3468.8902989,6.444e-05,2]
[422431549,1778943719000,-200.0,6.657e-05,2]
[422431550,1778943736000,-230.079,6.697e-05,2]
[422431552,1778943753000,-300.0,6.699e-05,2]
[422431553,1778943769000,-14670.99115016,6.7e-05,2]
[422431589,1778944232000,-152.0,6.012e-05,7]
[422431592,1778944232000,-3874.02177783,6.06e-05,2]
[422431594,1778944232000,-151.2223658,6.117e-05,2]
[422431595,1778944232000,-1200.0,6.129e-05,2]
[422431597,1778944232000,-5000.0,6.13e-05,2]
[422431601,1778944232000,-7688.22669189,6.16e-05,2]
[422431603,1778944232000,-2134.77127704,6.192e-05,2]
[422431600,1778944232000,-300.0,6.159e-05,2]
[422431916,1778944238000,-13531.19173238,6.7e-05,2]
[422431922,1778944238000,-1048.62864014,6.757e-05,2]
[422431920,1778944238000,-161.66594191,6.748e-05,2]
[422431924,1778944238000,-160.0,6.77e-05,2]
[422431912,1778944238000,-184.063,6.697e-05,2]
[422431902,1778944238000,-336.88562943,6.255e-05,2]
[422431908,1778944238000,-9545.54178855,6.46e-05,2]
[422431918,1778944238000,-1048.62864016,6.7e-05,2]
[422431906,1778944238000,-9502.31855718,6.36e-05,2]
[422431899,1778944238000,-392.20368658,6.192e-05,2]
[422431904,1778944238000,-8595.27262451,6.26e-05,2]
[422431910,1778944238000,-240.98131731,6.629e-05,2]
[422431926,1778944238000,-172.7058784,6.81e-05,2]
[422431914,1778944238000,-35379.39891029,6.7e-05,2]
[422431931,1778944238000,-500.0,6.833e-05,2]
[422431939,1778944238000,-500.0,6.833e-05,2]
[422431941,1778944238000,-500.0,6.833e-05,2]
[422431935,1778944238000,-500.0,6.833e-05,2]
[422431937,1778944238000,-500.0,6.833e-05,2]
[422431933,1778944238000,-500.0,6.833e-05,2]
[422431947,1778944238000,-416.927028,6.833e-05,2]
[422431949,1778944238000,-500.0,6.833e-05,2]
[422431945,1778944238000,-500.0,6.833e-05,2]
[422431943,1778944238000,-500.0,6.833e-05,2]
[422431951,1778944238000,-500.0,6.833e-05,2]
[422431953,1778944238000,-500.0,6.833e-05,2]
[422431955,1778944238000,-500.0,6.833e-05,2]
[422431928,1778944238000,-1048.62864014,6.814e-05,2]
[422431961,1778944239000,-500.0,6.833e-05,2]
[422431969,1778944239000,-1504.6956755,6.834e-05,2]